[Event "Polish Ekstraliga 2024"]
[Site "Walbrzych"]
[Date "2024.10.09"]
[Round "3.15"]
[White "Teclaf, Pawel"]
[Black "Huschenbeth, Niclas"]
[Result "1/2-1/2"]
[ECO "A05"]
[WhiteElo "2552"]
[BlackElo "2600"]
[Annotator "TA"]
[PlyCount "112"]
[EventDate "2024.10.05"]
[EventType "team-tourn"]
[EventCountry "POL"]
[SourceTitle "playchess.com"]
[Source "ChessBase"]
[SourceQuality "1"]
[WhiteTeam "Bydgoszcz"]
[BlackTeam "Raciborz"]
[TimeControl "40/5400+30:1800+30"]

{[%evp 23,112,16,4,25,17,7,79,77,80,72,86,75,74,77,83,83,85,90,85,86,102,100,124,104,126,64,122,53,54,60,52,52,60,50,77,33,62,70,77,77,71,35,45,0,68,56,63,27,27,34,72,4,4,6,27,27,27,0,0,0,0,0,0,0,0,0,0,0,0,0,0,0,0,0,0,0,0,0,0,0,0,0,0,0,0,0,0,0,0,0,1030]} 1. Nf3 {[%emt 0:00:36]} Nf6 {[%emt 0:00:23]} 2. g3 {[%emt 0:00:04]} c5 {[%emt 0:00:11]} 3. Bg2 {[%emt 0:01:33]} g6 {[%emt 0:00:09]} 4. c4 {[%emt 0:05:47]} Bg7 {[%emt 0:00:19]} 5. O-O {[%emt 0:01:50]} O-O {[%emt 0:02:00]} 6. d4 {[%emt 0:03:07]} cxd4 {[%emt 0:00:16]} 7. Nxd4 {[%emt 0:00:08]} d5 {[%emt 0:00:05]} 8. cxd5 {[%emt 0:05:28]} Nxd5 {[%emt 0:00:10]} 9. Nc3 {[%emt 0:00:02]} Nxc3 {[%emt 0:00:22]} 10. bxc3 {[%emt 0:03:30]} Nc6 {[%emt 0:00:07]} 11. Nxc6 {[%emt 0:00:26]} bxc6 {[%emt 0:00:06]} 12. Qxd8 {[%emt 0:03:52]} Rxd8 {[%emt 0:00:04]} 13. Bxc6 {[%emt 0:00:04]} Rb8 {[%emt 0:01:08][%cal Oc8h3,Ba8b8,Bb8b7,Bb7c7][%mdl 32]} 14. Be3 {[%emt 0:08:22]} Bb7 {[%emt 0:41:34]} (14... Bh3 $11 {hält das Gleichgewicht.} 15. Bxa7 Bxf1 16. Bxb8 Bxe2) 15. Bxb7 $16 {[%emt 0:07:48] Weiß steht besser.} Rxb7 {[%emt 0:00:03]} 16. Rab1 {[%emt 0:01:45]} Rc7 {[%emt 0:03:41]} 17. Rfc1 {[%emt 0:07:28]} Bxc3 {[%emt 0:13:23]} 18. Rb3 {[%emt 0:10:41]} Be5 {[%emt 0:12:06]} 19. Rxc7 {[%emt 0:00:22]} Bxc7 {[%emt 0:00:03][%mdl 4096] Endspiel. KRB-KRB} 20. Rb7 {[%emt 0:10:39]} Bb6 {[%emt 0:00:16]} 21. Rxe7 {[%emt 0:00:18]} Kf8 {[%emt 0:01:36]} 22. Re4 {[%emt 0:00:23] Weiß steht aktiver.} Bxe3 {[%emt 0:01:09]} 23. Rxe3 {[%emt 0:00:06] KR-KR} ({Bitte nicht} 23. fxe3 $6 Rd2 $11) 23... Rd2 {[%emt 0:00:07] [#]} 24. a3 {[%emt 0:04:24]} (24. Ra3 $1 $16) 24... h5 {[%emt 0:00:38]} (24... Ra2 $14) 25. Kf1 {[%emt 0:01:56]} ({Besser ist} 25. Re5 $16) 25... Ra2 $14 {[%emt 0:08:56]} 26. Kg2 {[%emt 0:06:09]} Kg7 {[%emt 0:03:47]} 27. Kf3 {[%emt 0:04:48]} Kf6 {[%emt 0:01:21]} 28. Ke4 {[%emt 0:02:31]} Rd2 {[%emt 0:01:41]} 29. f4 {[%emt 0:00:11]} a6 {[%emt 0:04:39][%cal Ba7a6,Ba6a5,Ba5a4][%mdl 32]} 30. Kf3 {[%emt 0:01:46] Droht stark Rd3.} Ra2 {[%emt 0:00:07]} 31. h3 {[%emt 0:01:02]} Ra1 {[%emt 0:04:51]} 32. Ke4 {[%emt 0:05:30]} Ra2 {[%emt 0:00:25]} 33. Kf3 {[%emt 0:01:03]} Ra1 {[%emt 0:00:10]} 34. Rb3 {[%emt 0:00:41]} a5 {[%emt 0:00:28]} 35. g4 {[%emt 0:01:42]} hxg4+ {[%emt 0:00:03]} 36. hxg4 {[%emt 0:00:03]} a4 {[%emt 0:00:46] [#]} 37. Rc3 {[%emt 0:00:06]} (37. g5+ $1 $16 Ke6 38. Rc3) 37... g5 $11 {[%emt 0:00:45]} 38. e3 {[%emt 0:00:56]} gxf4 {[%emt 0:01:02]} 39. exf4 {[%emt 0:00:02]} Kg6 {[%emt 0:00:24]} 40. Ke4 {[%emt 0:00:00]} f5+ {[%emt 0:00:00] Die Stellung ist ausgeglichen.} 41. gxf5+ {[%emt 0:06:13]} Kf6 $1 {[%emt 0:00:38]} 42. Rc6+ {[%emt 0:08:29]} Kf7 {[%emt 0:00:04]} 43. Ke5 {[%emt 0:00:49] Und jetzt Rc7+ wäre schön.} Re1+ {[%emt 0:02:15]} 44. Kd4 {[%emt 0:00:54] Rc4 ist eine echte Drohung.} Ra1 {[%emt 0:00:04]} 45. Rc3 {[%emt 0:00:24] Und Kc5 würde nun gewinnen.} Kf6 {[%emt 0:00:06]} 46. Ke4 {[%emt 0:01:43]} Ra2 {[%emt 0:07:01]} 47. Rd3 {[%emt 0:03:27]} Ra1 {[%emt 0:01:28]} 48. Kd5 {[%emt 0:02:29]} Kxf5 {[%emt 0:00:29]} 49. Kc5 {[%emt 0:00:20]} Kxf4 {[%emt 0:02:58]} 50. Rd4+ {[%emt 0:00:36]} Ke5 {[%emt 0:00:07]} 51. Rxa4 {[%emt 0:00:03]} Rc1+ {[%emt 0:02:27]} 52. Kb6 {[%emt 0:00:08]} Rc3 {[%emt 0:00:34]} 53. Ra8 {[%emt 0:01:53]} Kd6 {[%emt 0:00:47]} 54. Rd8+ {[%emt 0:00:22]} Ke7 {[%emt 0:00:05]} 55. Ra8 {[%emt 0:00:04]} Kd6 {[%emt 0:00:12]} 56. Rd8+ Ke5 $2 {[%mdl 40960] Gewichteter Fehlerwert: Weiß=0.12 (sehr präzise) /Schwarz=0.10 (sehr präzise) .  Verlustzug:     	---       	Schwarz=1     Fehler:       	Weiß=3     	Schwarz=2     Ungenau:       	Weiß=4     	Schwarz=3     OK:         	Weiß=12    	Schwarz=19    Bester:       	Weiß=2     	Schwarz=7     Stark:        	---       	Schwarz=1    . Ein unerwartetes Ergebnis.} (56... Ke7 $11 57. Ra8 Kd6) 1/2-1/2

[Event "Polish Ekstraliga 2024"]
[Site "Walbrzych"]
[Date "2024.10.09"]
[Round "3.16"]
[White "Krzyzanowski, Marcin"]
[Black "Nasuta, Grzegorz"]
[Result "1/2-1/2"]
[ECO "B96"]
[WhiteElo "2509"]
[BlackElo "2545"]
[Annotator "TA"]
[PlyCount "43"]
[EventDate "2024.10.05"]
[EventType "team-tourn"]
[EventCountry "POL"]
[SourceTitle "playchess.com"]
[Source "ChessBase"]
[SourceQuality "1"]
[WhiteTeam "Raciborz"]
[BlackTeam "Bydgoszcz"]
[TimeControl "40/5400+30:1800+30"]

{[%evp 14,43,37,27,31,25,14,19,38,0,0,0,0,0,0,0,0,0,0,0,0,0,0,0,0,0,0,0,0,0,0,0]} 1. e4 {[%emt 0:00:06]} c5 {[%emt 0:00:03]} 2. Nf3 {[%emt 0:00:06]} d6 {[%emt 0:00:06]} 3. d4 {[%emt 0:00:33]} cxd4 {[%emt 0:00:06]} 4. Nxd4 {[%emt 0:00:06]} Nf6 {[%emt 0:00:07]} 5. Nc3 {[%emt 0:00:05]} a6 {[%emt 0:00:06]} 6. Bg5 {[%emt 0:02:00]} e6 {[%emt 0:00:41]} 7. f4 {[%emt 0:01:25]} h6 {[%emt 0:01:12]} 8. Bh4 {[%emt 0:00:27]} Nbd7 {[%emt 0:00:28]} 9. Qf3 {[%emt 0:05:19]} e5 {[%emt 0:00:40]} 10. Nf5 {[%emt 0:03:39] Mit der Idee 0-0-0.} exf4 $1 {[%emt 0:00:51]} 11. Qxf4 {[%emt 0:04:56][%cal Oe1c1] Droht 0-0-0! und aus.} g5 {[%emt 0:00:16] Die Stellung ist ausgeglichen.} 12. Nxd6+ {[%emt 0:01:02]} Bxd6 {[%emt 0:01:06]} 13. Qxd6 {[%emt 0:00:05]} gxh4 {[%emt 0:00:08]} 14. e5 $1 {[%emt 0:00:46][%cal Oe1c1]} Ng4 {[%emt 0:00:28]} 15. Nd5 {[%emt 0:00:30] Pariert Qb6.} Qg5 $1 {[%emt 0:00:13][%cal Oa8b8]} 16. Nc7+ {[%emt 0:01:03]} Kd8 {[%emt 0:00:09] [#] Droht stark ...Qe3+.} 17. Nxa8 {[%emt 0:12:23]} Qe3+ {[%emt 0:00:13]} 18. Be2 {[%emt 0:00:05] Und Rf1 würde nun gewinnen.} Qf2+ {[%emt 0:00:06]} 19. Kd2 {[%emt 0:00:39] Rhf1 wäre nun fies.} Qe3+ {[%emt 0:00:07]} 20. Ke1 {[%emt 0:01:57]} Qf2+ {[%emt 0:00:10]} 21. Kd2 {[%emt 0:00:34] [#] Und jetzt Qc7+ wäre schön.} Qe3+ {[%emt 0:00:05]} 22. Ke1 {[%emt 0:00:07] Ein ziemlich ruhiges Remis.   Gewichteter Fehlerwert: Weiß=0.03 (makellos) /Schwarz=0.00 (makellos) .  Ungenau:       	Weiß=1     	---        OK:         	Weiß=2     	Schwarz=4     Bester:       	Weiß=4     	Schwarz=5     Stark:        	Weiß=1     	Schwarz=2} 1/2-1/2

[Event "Polish Ekstraliga 2024"]
[Site "Walbrzych"]
[Date "2024.10.09"]
[Round "3.17"]
[White "Kazakouski, Valery"]
[Black "Jakubowski, Krzysztof"]
[Result "1/2-1/2"]
[ECO "B40"]
[WhiteElo "2557"]
[BlackElo "2443"]
[Annotator "TA"]
[PlyCount "90"]
[EventDate "2024.10.05"]
[EventType "team-tourn"]
[EventCountry "POL"]
[SourceTitle "playchess.com"]
[Source "ChessBase"]
[SourceQuality "1"]
[WhiteTeam "Bydgoszcz"]
[BlackTeam "Raciborz"]
[TimeControl "40/5400+30:1800+30"]

{[%evp 23,90,21,43,51,45,41,33,49,46,32,35,30,55,51,52,54,50,53,48,32,60,58,46,55,59,22,26,32,36,37,39,21,14,12,12,13,37,0,0,0,0,0,0,0,0,0,0,0,0,0,0,0,0,0,0,0,0,0,0,0,0,0,0,0,0,0,0,0,0]} 1. e4 {[%emt 0:00:07]} c5 {[%emt 0:00:48]} 2. Nf3 {[%emt 0:00:11]} e6 {[%emt 0:00:07]} 3. d4 {[%emt 0:00:16]} cxd4 {[%emt 0:00:08]} 4. Nxd4 {[%emt 0:00:09]} Nf6 {[%emt 0:01:48]} 5. Nc3 {[%emt 0:00:12]} Nc6 {[%emt 0:00:06]} 6. Ndb5 {[%emt 0:01:05]} Bb4 {[%emt 0:00:43]} 7. a3 {[%emt 0:00:53]} Bxc3+ {[%emt 0:00:10]} 8. Nxc3 {[%emt 0:00:07]} d5 {[%emt 0:00:05]} 9. exd5 {[%emt 0:00:12]} exd5 {[%emt 0:00:06]} 10. Bd3 {[%emt 0:00:07]} O-O {[%emt 0:00:09]} 11. O-O {[%emt 0:00:12]} Bg4 {[%emt 0:00:11]} 12. f3 {[%emt 0:05:26]} Bh5 {[%emt 0:00:43]} 13. Bg5 {[%emt 0:03:34]} Qb6+ {[%emt 0:00:44]} 14. Kh1 {[%emt 0:00:42] Active counter play!} Ne4 {[%emt 0:00:12]} 15. Nxe4 {[%emt 0:00:16] White is slightly better.} dxe4 {[%emt 0:00:06]} 16. Bxe4 {[%emt 0:00:07]} Qxb2 {[%emt 0:00:06]} 17. Qb1 {[%emt 0:00:11]} Qb6 {[%emt 0:00:06]} 18. Qxb6 {[%emt 0:01:15]} axb6 {[%emt 0:00:05]} 19. Rfb1 {[%emt 0:00:05]} Bg6 {[%emt 0:00:06]} 20. Bxg6 {[%emt 0:00:15]} hxg6 {[%emt 0:00:05]} 21. Rxb6 {[%emt 0:00:05]} Nd4 {[%emt 0:04:18]} 22. c3 {[%emt 0:00:37]} Nc2 {[%emt 0:00:17][%csl LRa1,LRa3]} 23. Rc1 {[%emt 0:00:06]} Rfe8 {[%emt 0:03:30][%cal Oa8a3]} 24. h3 {[%emt 0:05:56]} (24. Rxc2 $2 Re1#) 24... Nxa3 {[%emt 0:06:54]} 25. Rxb7 {[%emt 0:01:11]} f6 {[%emt 0:03:16]} 26. Bf4 {[%emt 0:06:09]} g5 {[%emt 0:06:34]} 27. Bg3 {[%emt 0:01:01] [#] c4 would now be deadly.} Nc4 {[%emt 0:00:11]} 28. Rc7 {[%emt 0:10:20]} Ne3 {[%emt 0:04:44]} 29. Re1 {[%emt 0:03:49]} Kh7 {[%emt 0:09:53]} 30. Bf2 {[%emt 0:11:02]} Nd5 {[%emt 0:11:58] The position is equal.} 31. Rxe8 {[%emt 0:00:42]} Rxe8 $11 {[%emt 0:00:06][%mdl 4096] Endgame. KRB-KRN} 32. Rc5 {[%emt 0:00:20]} Nf4 {[%emt 0:03:58]} 33. Bg3 {[%emt 0:01:42]} Ne2 {[%emt 0:00:16]} 34. Kh2 {[%emt 0:01:16]} Kg6 {[%emt 0:10:16]} 35. c4 {[%emt 0:05:51]} Ra8 {[%emt 0:08:04]} 36. Bd6 {[%emt 0:05:33]} Ra2 {[%emt 0:10:33]} 37. Rd5 {[%emt 0:03:08]} Rc2 {[%emt 0:01:02]} 38. c5 {[%emt 0:01:12]} Rc4 {[%emt 0:06:21]} 39. Rd2 {[%emt 0:11:58]} Nd4 {[%emt 0:02:23]} 40. Rb2 {[%emt 0:00:00]} Ne6 {[%emt 0:00:00]} 41. Rb7 {[%emt 0:02:00]} Rc2 {[%emt 0:12:00]} 42. Re7 {[%emt 0:02:28]} Nd4 {[%emt 0:00:11]} 43. Kh1 {[%emt 0:15:42]} Rc1+ {[%emt 0:03:05]} 44. Kh2 {[%emt 0:00:13]} Rc2 {[%emt 0:00:04]} 45. Kh1 {[%emt 0:00:05]} Rc1+ {Weighted Error Value: White=0.03 (flawless) /Black=0.04 (flawless) .  Inaccurate:     	White=2     	Black=1      OK:         	White=12    	Black=23     Best:        	White=1     	---} 1/2-1/2

[Event "Polish Ekstraliga 2024"]
[Site "Walbrzych"]
[Date "2024.10.09"]
[Round "3.18"]
[White "Narva, Mai"]
[Black "Kiolbasa, Oliwia"]
[Result "1/2-1/2"]
[ECO "C78"]
[WhiteElo "2415"]
[BlackElo "2351"]
[Annotator "RC"]
[PlyCount "109"]
[EventDate "2024.10.05"]
[EventType "team-tourn"]
[EventCountry "POL"]
[SourceTitle "playchess.com"]
[Source "ChessBase"]
[SourceQuality "1"]
[WhiteTeam "Raciborz"]
[BlackTeam "Bydgoszcz"]
[TimeControl "40/5400+30:1800+30"]

1. e4 e5 {[%emt 0:00:06]} 2. Nf3 {[%emt 0:00:13]} Nc6 {[%emt 0:00:07]} 3. Bb5 {[%emt 0:00:12]} a6 {[%emt 0:00:10]} 4. Ba4 {[%emt 0:00:06]} Nf6 {[%emt 0:00:16]} 5. O-O {[%emt 0:00:18]} b5 {[%emt 0:00:50]} 6. Bb3 {[%emt 0:00:06]} Bc5 {[%emt 0:00:05]} 7. a4 {[%emt 0:00:29]} Rb8 {[%emt 0:00:11]} 8. axb5 {[%emt 0:01:38]} axb5 {[%emt 0:00:51]} 9. Nxe5 {[%emt 0:00:32]} Nxe5 {[%emt 0:00:11]} 10. d4 {[%emt 0:00:08]} Bxd4 {[%emt 0:00:18]} 11. Qxd4 {[%emt 0:00:06]} d6 {[%emt 0:00:17]} 12. f4 {[%emt 0:01:50]} Nc6 {[%emt 0:00:17]} 13. Qc3 {[%emt 0:01:24]} Ne7 {[%emt 0:00:53]} 14. e5 {[%emt 0:01:14]} Ne4 {[%emt 0:04:17]} 15. Qe1 {[%emt 0:00:42]} Nc5 {[%emt 0:07:55]} 16. Ba2 {[%emt 0:00:23]} O-O {[%emt 0:11:35]} 17. b4 {[%emt 0:30:55]} dxe5 {[%emt 0:04:30]} 18. Bb2 {[%emt 0:16:37]} Na4 {[%emt 0:05:55]} 19. Bxe5 {[%emt 0:00:56]} Nc6 {[%emt 0:05:30]} 20. Nc3 {[%emt 0:02:23]} Nxe5 {[%emt 0:04:50]} 21. Qxe5 {[%emt 0:01:32]} Nxc3 {[%emt 0:06:54]} 22. Qxc3 {[%emt 0:00:07]} Rb6 {[%emt 0:00:17]} 23. Bb3 {[%emt 0:09:45]} Bb7 {[%emt 0:04:43]} 24. f5 {[%emt 0:03:12]} Qg5 {[%emt 0:12:46]} 25. Rf2 {[%emt 0:01:39]} Rf6 {[%emt 0:00:47]} 26. Qc5 {[%emt 0:08:57]} Be4 {[%emt 0:05:17]} 27. Qxb5 {[%emt 0:05:57]} Rxf5 {[%emt 0:10:26]} 28. Qe2 {[%emt 0:00:56]} Rxf2 {[%emt 0:01:33]} 29. Qxf2 {[%emt 0:00:06]} h6 {[%emt 0:00:54]} 30. Rd1 {[%emt 0:05:39]} Kh7 {[%emt 0:02:51]} 31. h4 {[%emt 0:02:31]} Qg4 {[%emt 0:01:18]} 32. Rd4 {[%emt 0:00:37]} f5 {[%emt 0:00:23]} 33. Be6 {[%emt 0:02:26]} Qg6 {[%emt 0:04:37]} 34. Bc4 {[%emt 0:02:15]} Ra8 {[%emt 0:02:11]} 35. Bd3 {[%emt 0:00:46]} Bxd3 {[%emt 0:02:26]} 36. Rxd3 {[%emt 0:00:43]} Ra2 {[%emt 0:00:52]} 37. Kh2 {[%emt 0:00:45]} f4 {[%emt 0:00:45]} 38. Qxf4 {[%emt 0:00:37]} Rxc2 {[%emt 0:00:47]} 39. Rg3 {[%emt 0:00:17]} Qc6 {[%emt 0:00:22]} 40. b5 {[%emt 0:00:00]} Qc4 {[%emt 0:00:00]} 41. Qf5+ {[%emt 0:03:47]} Kh8 {[%emt 0:16:23]} 42. Qf8+ {[%emt 0:08:32]} Qg8 {[%emt 0:00:17]} 43. Qe7 {[%emt 0:00:12]} Rb2 {[%emt 0:05:02]} 44. Rd3 {[%emt 0:08:06]} Qc4 {[%emt 0:02:44]} 45. Qf8+ {[%emt 0:02:09]} Qg8 {[%emt 0:00:09]} 46. Qf5 {[%emt 0:00:50]} Qe8 {[%emt 0:04:27]} 47. Rd7 {[%emt 0:02:34]} Rf2 {[%emt 0:00:45]} 48. Qd5 {[%emt 0:01:11]} Qe3 {[%emt 0:00:34]} 49. Rd8+ {[%emt 0:04:49]} Kh7 {[%emt 0:00:05]} 50. Qg8+ {[%emt 0:00:14]} Kg6 {[%emt 0:00:06]} 51. h5+ {[%emt 0:03:38]} Kxh5 {[%emt 0:00:12]} 52. Qxg7 {[%emt 0:00:37]} Qf4+ {[%emt 0:04:07]} 53. Qg3 {[%emt 0:00:12]} Qxg3+ {[%emt 0:00:31]} 54. Kxg3 {[%emt 0:00:05]} Rf5 {[%emt 0:00:08]} 55. Rd7 {[%emt 0:00:18]} 1/2-1/2

[Event "Polish Ekstraliga 2024"]
[Site "Walbrzych"]
[Date "2024.10.09"]
[Round "3.19"]
[White "Janik, Igor"]
[Black "Ponomariov, Ruslan"]
[Result "1/2-1/2"]
[ECO "A06"]
[WhiteElo "2501"]
[BlackElo "2655"]
[Annotator "RC"]
[PlyCount "31"]
[EventDate "2024.10.05"]
[EventType "team-tourn"]
[EventCountry "POL"]
[SourceTitle "playchess.com"]
[Source "ChessBase"]
[SourceQuality "1"]
[WhiteTeam "Gorzow Wlkp"]
[BlackTeam "Katowice"]
[TimeControl "40/5400+30:1800+30"]

1. Nf3 {[%emt 0:00:03]} d5 {[%emt 0:00:53]} 2. g3 {[%emt 0:00:06]} g6 {[%emt 0:01:31]} 3. d4 {[%emt 0:00:48]} Bg7 {[%emt 0:01:18]} 4. Bg2 {[%emt 0:00:14]} c6 {[%emt 0:02:37]} 5. O-O {[%emt 0:00:28]} Nf6 {[%emt 0:00:07]} 6. c3 {[%emt 0:00:26]} O-O {[%emt 0:00:59]} 7. a4 {[%emt 0:00:10]} Nbd7 {[%emt 0:13:09]} 8. a5 {[%emt 0:05:35]} Re8 {[%emt 0:01:42]} 9. Bf4 {[%emt 0:03:06]} Nh5 {[%emt 0:01:38]} 10. Nbd2 {[%emt 0:06:46]} Nxf4 {[%emt 0:10:50]} 11. gxf4 {[%emt 0:05:21]} Nf6 12. Qb3 {[%emt 0:00:44]} Qc7 {[%emt 0:07:02]} 13. e3 {[%emt 0:05:46]} Be6 {[%emt 0:16:37]} 14. Ne5 {[%emt 0:03:53]} c5 15. Qb5 {[%emt 0:06:07]} b6 {[%emt 0:12:28]} 16. axb6 {[%emt 0:00:30]} 1/2-1/2